Workbook

Sheet SII CI calculation details
A1: This sheet demonstrates the methodology step by step. The next sheet condenses all this into two functions, held in a single row, to enable multiple areas.
A4: values from decile LE calculations | F4: SE derived from LE CI | I4: parameters for SII calculation | N4: val simulations (x eg 10,000)
A5: decile | B5: val | C5: LCL | D5: UCL | E5: population | G5: SE | I5: a | J5: b | K5: sqrt(a) | L5: bsqrt(a) | N5: 1 | O5: 2 | P5: 3 | Q5: …
A6: 1 | B6: 75.93345901 | C6: 72.72205305 | D6: 79.14486497 | E6: 7291 | G6: =(D6-C6)/1.96/2 -> 1.638472426 | I6: =E6/SUM($E$6:$E$15) -> 0.1066621803 | J6: =I6/2 -> 0.05333109017 | K6: =SQRT(I6) -> 0.3265917641 | L6: =J6*K6 -> 0.01741749482 | N6: =_xlfn.NORM.INV(genrand_real2b(),$B6,$G6) -> 79.94971103 | O6: =_xlfn.NORM.INV(genrand_real2b(),$B6,$G6) -> 76.12785103 | P6: 75.91491627
A7: 2 | B7: 78.34423827 | C7: 75.25098022 | D7: 81.43749633 | E7: 7997 | G7: 1.578192885 | I7: 0.1169904617 | J7: =I7/2+I6/2+J6 -> 0.1651574112 | K7: 0.3420386845 | L7: 0.05649022366 | N7: =_xlfn.NORM.INV(genrand_real2b(),$B7,$G7) -> 79.74782593 | O7: =_xlfn.NORM.INV(genrand_real2b(),$B7,$G7) -> 78.0008212 | P7: 80.6807688
A8: 3 | B8: 83.8360631 | C8: 80.86972951 | D8: 86.8023967 | E8: 6105 | G8: 1.513435506 | I8: 0.08931183802 | J8: 0.2683085611 | K8: 0.2988508625 | L8: 0.08018424489 | N8: 86.65772408 | O8: 84.70090598 | P8: 83.44406649
A9: 4 | B9: 83.63753997 | C9: 80.15757836 | D9: 87.11750158 | E9: 7666 | G9: 1.775490618 | I9: 0.1121481655 | J9: 0.3690385628 | K9: 0.334885302 | L9: 0.1235855906 | N9: 85.36713146 | O9: 82.53174387 | P9: 85.97280561
A10: 5 | B10: 80.46550315 | C10: 77.1308786 | D10: 83.80012771 | E10: 5790 | G10: 1.701339059 | I10: 0.08470361051 | J10: 0.4674644508 | K10: 0.2910388471 | L10: 0.1360503148 | N10: 78.52469919 | O10: 81.34525435 | P10: 82.78245526
A11: 6 | B11: 81.11567599 | C11: 78.04999868 | D11: 84.18135329 | E11: 6934 | G11: 1.564121074 | I11: 0.1014395225 | J11: 0.5605360173 | K11: 0.3184957182 | L11: 0.1785283214 | N11: 79.39378478 | O11: 83.65675738 | P11: 77.30605211
A12: 7 | B12: 81.69308357 | C12: 79.01157849 | D12: 84.37458865 | E12: 5918 | G12: 1.368114837 | I12: 0.0865761601 | J12: 0.6545438586 | K12: 0.294238271 | L12: 0.1925918532 | N12: 80.48384172 | O12: 83.10349579 | P12: 82.15565469
A13: 8 | B13: 84.19000621 | C13: 81.44572828 | D13: 86.93428414 | E13: 5974 | G13: 1.400141801 | I13: 0.08739540055 | J13: 0.7415296389 | K13: 0.2956271309 | L13: 0.2192162797 | N13: 84.35492377 | O13: 81.54541626 | P13: 82.37585036
A14: 9 | B14: 80.59556411 | C14: 75.82718517 | D14: 85.36394305 | E14: 7147 | G14: 2.432846398 | I14: 0.1045555621 | J14: 0.8375051203 | K14: 0.3233505251 | L14: 0.2708077204 | N14: 79.16673239 | O14: 80.71258747 | P14: 82.77402895
A15: 10 | B15: 86.28943496 | C15: 83.21905935 | D15: 89.35981057 | E15: 7534 | G15: 1.56651817 | I15: 0.1102170987 | J15: 0.9448914506 | K15: 0.3319896063 | L15: 0.3136941407 | N15: 85.50452695 | O15: 86.96756407 | P15: 85.08524363
A16: max | B16: 85.01124726 | C16: 0 | D16: 0 | J16: 1
A17: SII | B17: 6.934616474 | C17: 0.6775640662 | D17: 13.19166888 | E17: 68356 | N17: val x sqrt(a) simulations (x eg 10,000)
N18: =N6*$K6 -> 26.11091716 | O18: =O6*$K6 -> 24.86272916 | P18: 24.79318642
H19: =LINEST(N18:N27,$K$6:$L$15,FALSE,FALSE) -> 1.636170975 | I19: 81.09917835 | J19: 0 | N19: =N7*$K7 -> 27.27684147 | O19: 26.67929827 | P19: 27.59594402
H20: 1.636170975 | I20: 81.09917835 | J20: 0 | N20: =N8*$K8 -> 25.89773558 | O20: 25.31293881 | P20: 24.93733124
H21: 1.636170975 | I21: 81.09917835 | J21: 0 | N21: =N9*$K9 -> 28.5881976 | O21: 27.63866797 | P21: 28.79102897
H22: 1.636170975 | I22: 81.09917835 | J22: 0 | N22: =N10*$K10 -> 22.85373792 | O22: 23.67462904 | P22: 24.09291034
H23: 1.636170975 | I23: 81.09917835 | J23: 0 | N23: =N11*$K11 -> 25.2865805 | O23: 26.64431902 | P23: 24.62164659
H24: 1.636170975 | I24: 81.09917835 | J24: 0 | N24: =N12*$K12 -> 23.68142643 | O24: 24.45222891 | P24: 24.17333779
H25: 1.636170975 | I25: 81.09917835 | J25: 0 | N25: =N13*$K13 -> 24.93760409 | O25: 24.10703745 | P25: 24.3525363
N26: =N14*$K14 -> 25.59860449 | O26: 26.09845754 | P26: 26.76502572
N27: =N15*$K15 -> 28.38661424 | O27: 28.87232736 | P27: 28.24741654
N29: SII simulations (x eg 10,000)
H30: SII calculated for each repetition --> | N30: =LINEST(N18:N27,$K$6:$L$15,FALSE,FALSE) -> 1.636170975 | O30: =LINEST(O18:O27,$K$6:$L$15,FALSE,FALSE) -> 7.130388489 | P30: 4.983661567
N32: RII simulations (x eg 10,000)
F33: 0 | H33: RII calculated for each repetition --> | N33: =(INDEX(LINEST(N18:N27,$K$6:$L$15,FALSE,FALSE),1,2)+INDEX(LINEST(N18:N27,$K$6:$L$15,FALSE,FALSE),1,1))/INDEX(LINEST(N18:N27,$K$6:$L$15,FALSE,FALSE),1,2) -> 1.020174939 | O33: =(INDEX(LINEST(O18:O27,$K$6:$L$15,FALSE,FALSE),1,2)+INDEX(LINEST(O18:O27,$K$6:$L$15,FALSE,FALSE),1,1))/INDEX(LINEST(O18:O27,$K$6:$L$15,FALSE,FALSE),1,2) -> 1.091154891 | P33: 1.06281658

Sheet SII CI functions
A1: Enter red and blue data in rows 12 onwards. Copy functions in AQ12:AV12 down to include all rows of data. See previous sheet for step by step demonstration of method.
A3: 4 functions defined: | C3: SII(values, populations) | N3: values (required) is range of 10 values for decile indicator values laid out as below | AE3: Change reps and CI here: | AI3: Reps: | AJ3: 10000 | AL3: Warning: changing the number of reps to a large number (eg >100,000) may lock your
C4: SIISimCI(values, lowerCIs, upperCIs, populations, reps, conf) | N4: lowerCIs (required) is range of 10 values for decile indicator lower confidence limits laid out as below | AI4: CI: | AJ4: 0.95 | AL4: PC for a long time - check with smaller numbers first to estimate time
C5: RII(values, populations) | N5: upperCIs (required) is range of 10 values for decile indicator upper confidence limits laid out as below
C6: RIISimCI(values, lowerCIs, upperCIs, populations, reps, conf) | N6: populations (required) is range of 10 values for decile populations laid out as below
N7: reps (optional: default = 10,000) is number of repetitions for simulation
N8: conf (optional: default = 0.95, ie 95% confidence intervals) is confidence level for CI
C10: Decile indicator values | M10: Decile indicator lower confidence limits | W10: Decile indicator upper confidence limits | AG10: Decile populations | AQ10: SII | AR10: 95% CI | AT10: RII | AU10: 95% CI
A11: Area | B11: Decile | C11: 1 | D11: 2 | E11: 3 | F11: 4 | G11: 5 | H11: 6 | I11: 7 | J11: 8 | K11: 9 | L11: 10 | M11: 1 | N11: 2 | O11: 3 | P11: 4 | Q11: 5 | R11: 6 | S11: 7 | T11: 8 | U11: 9 | V11: 10 | W11: 1 | X11: 2 | Y11: 3 | Z11: 4 | AA11: 5 | AB11: 6 | AC11: 7 | AD11: 8 | AE11: 9 | AF11: 10 | AG11: 1 | AH11: 2 | AI11: 3 | AJ11: 4 | AK11: 5 | AL11: 6 | AM11: 7 | AN11: 8 | AO11: 9 | AP11: 10
A12: Area code 1 | B12: 1 | C12: 75.93345901 | D12: 78.34423827 | E12: 83.8360631 | F12: 83.63753997 | G12: 80.46550315 | H12: 81.11567599 | I12: 81.69308357 | J12: 84.19000621 | K12: 80.59556411 | L12: 86.28943496 | M12: 72.72205305 | N12: 75.25098022 | O12: 80.86972951 | P12: 80.15757836 | Q12: 77.1308786 | R12: 78.04999868 | S12: 79.01157849 | T12: 81.44572828 | U12: 75.82718517 | V12: 83.21905935 | W12: 79.14486497 | X12: 81.43749633 | Y12: 86.8023967 | Z12: 87.11750158 | AA12: 83.80012771 | AB12: 84.18135329 | AC12: 84.37458865 | AD12: 86.93428414 | AE12: 85.36394305 | AF12: 89.35981057 | AG12: 7291 | AH12: 7997 | AI12: 6105 | AJ12: 7666 | AK12: 5790 | AL12: 6934 | AM12: 5918 | AN12: 5974 | AO12: 7147 | AP12: 7534 | AQ12: =sii(C12:L12,AG12:AP12) -> 6.934616474 | AR12: =siisimci(C12:L12,M12:V12,W12:AF12,AG12:AP12,$AJ$3,$AJ$4) -> 3.178751676 | AS12: 10.75461753 | AT12: =rii(C12:L12,AG12:AP12) -> 1.08881808 | AU12: =riisimci(C12:L12,M12:V12,W12:AF12,AG12:AP12,$AJ$3,$AJ$4) -> 1.039049622 | AV12: 1.14239055
